bitfinex/quotes_SOLUSD_20250724
["timestamp","ask_amount","ask_price","bid_price","bid_amount"]
[1753367598731,0.03,185.96,185.95,57.59269575]
[1753367598930,0.03,185.96,185.95,62.97048547]
[1753367599246,0.03,185.96,185.95,154.70879624]
[1753367599741,0.03,185.96,185.95,171.77780335]
[1753367599946,0.03,185.96,185.95,82.77780335]
[1753367600940,0.03,185.96,185.95,16.46130049]
[1753367601147,0.03,185.96,185.95,65.70879624]
[1753367601837,0.03,186.0,185.97,0.28432314]
[1753367602033,0.03,186.0,185.99,8.92749575]
[1753367602228,0.03,186.0,185.99,49.87749575]
[1753367602950,0.03,186.0,185.99,55.2541289]
[1753367603156,0.03,186.0,185.99,46.32663315]
[1753367603452,0.03,186.0,185.99,55.2541289]
[1753367605353,0.03,186.0,185.99,144.2541289]
[1753367605529,0.03,186.0,185.99,138.87749575]
[1753367606461,0.03,186.0,185.99,144.2541289]
[1753367607955,0.03,186.04,185.99,183.69221464]
[1753367608259,0.03,186.04,186.03,8.92749575]
[1753367608459,0.03,186.04,186.03,49.08749575]
[1753367608639,0.03,186.04,186.03,49.75749575]
[1753367608828,0.03,186.04,186.03,138.75749575]
[1753367609033,0.1,186.07,186.04,16.78468397]
[1753367609256,0.03,186.11,186.07,17.06900711]
[1753367609563,0.03,186.11,186.1,8.92749575]
[1753367609731,0.03,186.11,186.1,49.08749575]
[1753367609930,0.03,186.11,186.1,72.19995799]
[1753367611238,0.03,186.11,186.1,161.19995799]
[1753367612548,0.03,186.11,186.1,169.30545799]
[1753367613041,0.03,186.15,186.1,169.30545799]
[1753367613042,0.03,186.15,186.11,17.06900711]
[1753367613243,0.03,186.15,186.14,25.99650286]
[1753367613446,0.03,186.15,186.14,49.00749575]
[1753367613844,0.03,186.15,186.14,49.67749575]
[1753367614042,0.03,186.15,186.14,55.04979616]
[1753367615254,0.03,186.15,186.14,72.11880327]
[1753367617157,0.03,186.17,186.15,17.06900711]
[1753367617338,0.03,186.17,186.16,65.99650286]
[1753367617543,0.03,186.17,186.16,66.66650286]
[1753367617867,1e-08,186.4,186.35,26.0]
[1753367618158,0.68,186.5,186.43,0.28432314]
[1753367618342,0.68,186.5,186.43,40.98]
[1753367618539,0.68,186.5,186.43,49.90749575]
[1753367618743,8.92749575,186.48,186.41,40.96]
[1753367618961,0.69,186.47,186.42,16.78468397]
[1753367619141,0.69,186.46,186.42,25.71217972]
[1753367619342,8.92749575,186.48,186.42,25.71217972]
[1753367620164,26.69,186.49,186.42,19.4278495]
[1753367620364,8.92749575,186.47,186.42,28.35534525]
[1753367620561,26.69,186.49,186.42,19.4278495]
[1753367620856,8.92749575,186.47,186.42,19.4278495]
[1753367621639,8.92749575,186.43,186.42,2.64316553]
[1753367621836,0.69,186.43,186.39,20.18999194]
[1753367622050,8.92749575,186.46,186.41,8.92749575]
[1753367622251,0.69,186.49,186.43,8.92749575]
[1753367622453,8.92749575,186.47,186.42,0.69]
[1753367622761,26.0,186.5,186.42,8.92749575]
[1753367622963,9.61749575,186.46,186.41,40.9]
[1753367623167,8.92749575,186.45,186.41,40.9]
[1753367623371,26.0,186.5,186.41,49.82749575]
[1753367623552,8.92749575,186.5,186.45,8.92749575]
[1753367623749,8.92749575,186.51,186.46,8.92749575]
[1753367623962,9.61749575,186.53,186.48,8.92749575]
[1753367624150,8.92749575,186.51,186.46,8.92749575]
[1753367624465,0.69,186.5,186.45,49.82749575]
[1753367624673,0.69,186.54,186.46,8.92749575]
[1753367624872,8.92749575,186.51,186.46,8.92749575]
[1753367625455,26.0,186.51,186.47,8.92749575]
[1753367625765,8.92749575,186.52,186.47,8.92749575]
[1753367626861,8.92749575,186.52,186.47,9.61749575]
[1753367627062,8.92749575,186.53,186.48,8.92749575]
[1753367627350,8.92749575,186.53,186.48,0.69]
[1753367627568,9.61749575,186.53,186.45,41.59]
[1753367627762,9.61749575,186.53,186.47,8.92749575]
[1753367628160,14.97876173,186.53,186.47,8.92749575]
[1753367628467,14.97876173,186.53,186.46,8.92749575]
[1753367628468,8.92749575,186.51,186.46,8.92749575]
[1753367628867,8.92749575,186.52,186.47,9.61749575]
[1753367629283,8.92749575,186.51,186.46,8.92749575]
[1753367629467,0.69,186.5,186.41,16.78468397]
[1753367629667,0.69,186.5,186.4,31.31360161]
[1753367629668,0.69,186.5,186.49,8.92749575]
[1753367629972,0.69,186.5,186.44,16.78468397]
[1753367629973,14.97876173,186.53,186.48,8.92749575]
[1753367630160,14.28876173,186.53,186.46,0.69]
[1753367630476,9.61749575,186.52,186.47,8.92749575]
[1753367630875,8.92749575,186.5,186.42,41.47]
[1753367631051,8.92749575,186.5,186.45,8.92749575]
[1753367631256,8.92749575,186.48,186.42,0.69]
[1753367631456,9.61749575,186.49,186.44,8.92749575]
[1753367631657,0.69,186.51,186.44,0.69]
[1753367631864,8.92749575,186.5,186.45,8.92749575]
[1753367632071,9.61749575,186.5,186.45,8.92749575]
[1753367632356,14.97971356,186.49,186.44,8.92749575]
[1753367632556,8.92749575,186.46,186.41,8.92749575]
[1753367632774,9.61749575,186.46,186.41,8.92749575]
[1753367632980,8.92749575,186.46,186.4,9.16422212]
[1753367633178,8.92749575,186.45,186.4,2.71402212]
[1753367633480,8.92749575,186.41,186.39,20.18999194]
[1753367633689,9.61749575,186.4,186.39,20.18999194]
[1753367634168,8.92749575,186.4,186.39,20.18999194]
[1753367634367,8.92749575,186.41,186.39,20.18999194]
[1753367634760,8.92749575,186.44,186.39,29.80748769]
[1753367634961,8.92749575,186.43,186.39,22.93930137]
[1753367636189,0.69,186.46,186.39,32.55679712]
[1753367636190,8.92749575,186.44,186.39,32.55679712]
[1753367636369,5.36337248,186.45,186.4,0.69]
[1753367636682,0.69,186.49,186.41,9.61749575]
[1753367636862,5.36277819,186.48,186.44,8.92749575]
[1753367637062,5.3616428,186.51,186.46,8.92749575]
[1753367637276,14.28913855,186.51,186.46,8.92749575]
[1753367637474,9.61749575,186.5,186.45,8.92749575]
[1753367637671,8.92749575,186.5,186.45,8.92749575]
[1753367638286,14.28949111,186.5,186.45,8.92749575]
[1753367638675,5.36199536,186.5,186.45,9.61749575]
[1753367638884,5.36199536,186.5,186.46,9.61749575]
[1753367639189,8.92749575,186.51,186.46,0.69]
[1753367639486,8.92749575,186.51,186.45,8.92749575]
[1753367639685,14.9793173,186.51,186.46,8.92749575]
[1753367639870,8.92749575,186.49,186.42,19.87482204]
[1753367640071,8.92749575,186.48,186.43,8.92749575]
[1753367640279,14.28947788,186.5,186.45,8.92749575]
[1753367640467,8.92749575,186.49,186.44,0.69]
[1753367640667,8.92749575,186.49,186.44,8.92749575]
[1753367640869,9.61749575,186.48,186.43,8.92749575]
[1753367641062,5.36198213,186.5,186.42,19.87482204]
[1753367641063,8.92749575,186.44,186.42,19.87482204]
[1753367641571,0.69,186.47,186.42,19.87482204]
[1753367641895,8.92749575,186.48,186.43,8.92749575]
[1753367642066,0.69,186.48,186.42,28.80231779]
[1753367642260,14.29046777,186.47,186.42,28.80231779]
[1753367642488,8.92749575,186.45,186.42,19.87482204]
[1753367642669,6.05297202,186.47,186.42,19.87482204]
[1753367642876,8.92749575,186.45,186.42,19.87482204]
[1753367643394,8.92749575,186.46,186.42,19.87482204]
[1753367643598,14.09607264,186.49,186.43,9.61749575]
[1753367643599,14.29003693,186.48,186.43,9.61749575]
[1753367643762,5.39157878,186.52,186.46,8.92749575]
[1753367643971,0.03,186.52,186.51,8.92749575]
[1753367644172,0.03,186.56,186.51,81.65897891]
[1753367644480,0.03,186.56,186.54,8.92749575]
[1753367644694,0.03,186.56,186.53,8.92749575]
[1753367644867,0.03,186.56,186.52,9.61749575]
[1753367645071,0.03,186.56,186.53,8.92749575]
[1753367645303,0.03,186.56,186.53,9.61749575]
[1753367645470,0.03,186.56,186.51,46.04152095]
[1753367645672,0.03,186.56,186.54,0.69]
[1753367645870,0.03,186.56,186.53,8.92749575]
[1753367646401,8.92749575,186.55,186.48,6.05246185]
[1753367646605,8.92749575,186.51,186.45,2.2018]
[1753367646811,8.95749575,186.56,186.44,5.36361798]
[1753367646812,8.92749575,186.5,186.44,8.92749575]
[1753367647087,0.69,186.52,186.46,8.92749575]
[1753367647468,0.69,186.52,186.44,0.69]
[1753367647671,8.92749575,186.5,186.44,9.61749575]
[1753367648098,8.92749575,186.5,186.43,40.74]
[1753367648099,8.92749575,186.48,186.43,40.74]
[1753367648278,5.36308055,186.46,186.42,19.87482204]
[1753367648476,0.69,186.45,186.42,19.87482204]
[1753367648798,9.64749575,186.44,186.42,19.87482204]
[1753367649092,8.92749575,186.43,186.42,19.87482204]
[1753367649714,9.64749575,186.43,186.42,19.87482204]
[1753367650290,15.01143932,186.43,186.42,19.87482204]
[1753367650500,8.92749575,186.43,186.42,19.87482204]
[1753367650712,8.92749575,186.44,186.42,19.87482204]
[1753367650910,8.92749575,186.43,186.42,19.87482204]
[1753367651392,40.68,186.48,186.42,19.87482204]
[1753367651393,14.29000111,186.48,186.42,28.80231779]
[1753367651584,8.92749575,186.47,186.42,20.56482204]
[1753367651786,14.29000111,186.48,186.43,8.92749575]
[1753367652015,5.36250536,186.48,186.44,8.92749575]
[1753367652197,5.36106792,186.53,186.47,8.92749575]
[1753367652611,8.92749575,186.52,186.47,8.92749575]
[1753367652793,14.28856367,186.53,186.48,8.92749575]
[1753367653001,8.92749575,186.53,186.48,8.92749575]
[1753367653191,9.64749575,186.55,186.5,8.92749575]
[1753367653507,8.95749575,186.56,186.51,8.92749575]
[1753367653710,8.92749575,186.54,186.49,8.92749575]
[1753367653918,8.92749575,186.54,186.45,5.89969209]
[1753367653919,8.92749575,186.53,186.46,0.69]
[1753367654290,14.28858792,186.53,186.48,8.92749575]
[1753367654492,15.00858792,186.53,186.48,8.92749575]
[1753367654706,8.92749575,186.51,186.46,8.92749575]
[1753367655015,8.92749575,186.51,186.45,8.92749575]
[1753367655386,0.72,186.52,186.46,8.92749575]
[1753367655613,14.28858792,186.53,186.48,8.92749575]
[1753367655801,9.64749575,186.55,186.5,8.92749575]
[1753367656116,9.64749575,186.54,186.48,8.92749575]
[1753367656292,14.28856367,186.53,186.48,8.92749575]
[1753367657405,18.90664866,186.53,186.48,13.54558074]
[1753367657921,0.72,186.52,186.48,13.54558074]
[1753367658110,18.90664866,186.53,186.48,13.54558074]
[1753367658417,13.54558074,186.53,186.46,46.81296894]
[1753367658625,13.54558074,186.53,186.46,41.45]
[1753367658626,13.54558074,186.52,186.46,41.45]
[1753367658925,13.54558074,186.52,186.47,13.54558074]
[1753367659310,13.54558074,186.52,186.47,14.23558074]
[1753367659715,5.36078052,186.54,186.49,13.54558074]
[1753367659921,13.54558074,186.52,186.47,13.54558074]
[1753367660303,14.04558074,186.52,186.47,13.54558074]
[1753367660639,18.9064227,186.54,186.48,0.69]
[1753367660824,13.54558074,186.54,186.48,0.69]
[1753367661028,0.03,186.56,186.52,13.54558074]
[1753367661804,18.93578926,186.56,186.51,13.54558074]
[1753367662127,18.93578926,186.56,186.47,5.36265477]
[1753367662128,14.04558074,186.55,186.47,6.05265477]
[1753367662309,14.04558074,186.55,186.5,13.54558074]
[1753367662504,0.03,186.56,186.52,13.54558074]
[1753367662724,18.93587612,186.56,186.51,14.23558074]
[1753367663214,0.03,186.56,186.52,0.69]
[1753367663414,13.57558074,186.56,186.52,0.69]
[1753367663931,0.03,186.56,186.52,0.69]
[1753367664127,13.57558074,186.56,186.52,0.69]
[1753367665237,0.03,186.56,186.52,13.54558074]
[1753367665433,0.03,186.56,186.53,0.69]
[1753367665824,0.03,186.56,186.53,14.23558074]
[1753367666047,0.03,186.56,186.55,13.54558074]
[1753367666355,0.03,186.56,186.55,14.23558074]
[1753367666845,0.03,186.56,186.55,0.69]
[1753367667016,0.03,186.56,186.55,13.54558074]
[1753367667221,0.03,186.56,186.52,0.69]
[1753367667222,0.03,186.56,186.54,13.54558074]
[1753367667958,0.03,186.56,186.54,14.23558074]
[1753367668242,0.75,186.56,186.5,13.54558074]
[1753367668423,13.54558074,186.55,186.5,13.54558074]
[1753367668621,13.54558074,186.55,186.48,0.69]
[1753367668622,0.03,186.56,186.52,13.54558074]
[1753367668819,0.03,186.56,186.55,13.54558074]
[1753367669032,0.03,186.56,186.55,18.9060739]
[1753367669227,0.03,186.56,186.55,19.5960739]
[1753367670031,0.03,186.56,186.55,6.05049316]
[1753367670240,0.03,186.56,186.55,19.5960739]
[1753367670957,0.03,186.56,186.55,6.05049316]
[1753367671258,0.03,186.56,186.55,19.5960739]
[1753367671748,0.03,186.56,186.55,25.6427739]
[1753367672937,0.03,186.56,186.55,26.17882321]
[1753367673135,0.03,186.56,186.55,43.24783032]
[1753367673332,0.03,186.56,186.55,42.71178101]
[1753367674550,0.03,186.56,186.55,43.24783032]
[1753367675447,1e-08,186.56,186.55,56.79341106]
[1753367675752,0.03,186.64,186.6,0.28432314]
[1753367675966,0.03,186.64,186.63,13.54558074]
[1753367676163,0.03,186.64,186.63,14.23558074]
[1753367676341,0.03,186.64,186.63,31.30458785]
[1753367676939,0.03,186.64,186.63,36.6627832]
[1753367677168,0.03,186.64,186.63,23.11720246]
[1753367677462,0.03,186.64,186.63,31.96049807]
[1753367677963,0.03,186.64,186.63,34.65702945]
[1753367679247,0.03,186.64,186.63,25.81373384]
[1753367679636,0.03,186.64,186.63,34.65702945]
[1753367680535,0.03,186.64,186.63,25.12373384]
[1753367680736,0.03,186.64,186.63,25.79373384]
[1753367680948,0.03,186.64,186.6,0.67]
[1753367681156,0.03,186.64,186.61,40.66]
[1753367681359,0.03,186.64,186.63,0.67]
[1753367681555,0.03,186.64,186.62,0.67]
[1753367681760,0.03,186.64,186.63,8.84329561]
[1753367682356,0.03,186.64,186.62,8.84329561]
[1753367682867,0.03,186.64,186.61,52.20108243]
[1753367683043,8.84329561,186.62,186.55,6.7167]
[1753367683362,0.71,186.63,186.57,8.84329561]
[1753367683562,0.71,186.61,186.56,40.88]
[1753367683745,0.71,186.6,186.56,49.72329561]
[1753367683945,8.84329561,186.61,186.56,49.72329561]
[1753367684165,8.84329561,186.62,186.57,8.84329561]
[1753367684357,9.55329561,186.62,186.56,41.55]
[1753367684558,0.71,186.61,186.54,2.66737071]
[1753367684759,8.84329561,186.58,186.53,49.70329561]
[1753367684969,9.55329561,186.57,186.53,40.86]
[1753367685143,8.84329561,186.55,186.48,5.36250307]
[1753367685353,8.84329561,186.54,186.48,7.99241837]
[1753367685561,8.84329561,186.54,186.49,40.86]
[1753367685865,18.75489038,186.62,186.46,53.02347717]
[1753367685866,0.71,186.53,186.46,53.02347717]
[1753367686068,0.71,186.53,186.46,52.35347717]
[1753367686447,8.84329561,186.54,186.46,52.35347717]
[1753367686448,8.84329561,186.54,186.49,8.84329561]
[1753367686645,9.55329561,186.54,186.49,8.84329561]
[1753367686851,0.71,186.54,186.49,8.84329561]
[1753367687063,8.84329561,186.57,186.52,8.84329561]
[1753367687268,8.84329561,186.58,186.53,9.51329561]
[1753367687471,6.641,186.63,186.56,8.84329561]
[1753367687673,8.84329561,186.62,186.57,8.84329561]
[1753367687880,0.03,186.64,186.58,1.20596312]
[1753367688050,0.03,186.64,186.59,0.67]
[1753367688250,0.03,186.64,186.63,8.84329561]
[1753367688567,0.03,186.64,186.62,5.35848222]
[1753367688769,0.03,186.64,186.61,0.67]
[1753367689073,0.03,186.64,186.63,8.84329561]
[1753367689376,0.03,186.64,186.61,5.35874864]
[1753367689573,0.03,186.64,186.63,8.84329561]
[1753367689875,0.03,186.64,186.61,5.35874864]
[1753367690056,0.03,186.64,186.63,8.84329561]
[1753367690749,0.03,186.64,186.63,14.20149096]
[1753367691077,0.03,186.64,186.63,14.87149096]
[1753367692349,0.03,186.64,186.63,6.02819535]
[1753367692549,0.03,186.64,186.63,14.20149096]
[1753367692979,0.03,186.64,186.63,14.87149096]
[1753367693179,0.03,186.68,186.67,8.84329561]
[1753367693352,0.03,186.68,186.67,41.56]
[1753367693670,0.03,186.68,186.67,42.23]
[1753367693975,0.03,186.68,186.67,50.40329561]
[1753367694677,0.03,186.68,186.67,56.4303428]
[1753367695259,0.03,186.68,186.67,82.34264552]
[1753367695569,0.03,186.68,186.65,24.67747383]
[1753367695779,0.03,186.68,186.65,66.35747383]
[1753367695957,0.03,186.68,186.66,8.84329561]
[1753367696159,0.03,186.68,186.66,0.67]
[1753367696363,0.03,186.68,186.67,8.84329561]
[1753367697071,0.03,186.68,186.67,14.8703428]
[1753367697280,0.03,186.68,186.67,8.84329561]
[1753367698164,0.03,186.68,186.66,5.35720852]
[1753367698360,0.03,186.68,186.67,8.84329561]
[1753367698554,0.03,186.68,186.67,6.02704719]
[1753367698754,0.03,186.68,186.67,14.8703428]
[1753367699162,0.03,186.68,186.67,6.02704719]
[1753367699370,0.03,186.68,186.67,14.2003428]
[1753367699979,0.03,186.68,186.67,14.8703428]
[1753367700157,0.03,186.68,186.67,14.2003428]
[1753367700367,9.58329561,186.68,186.65,19.3198726]
[1753367700564,8.84329561,186.66,186.65,19.3198726]
[1753367700772,0.71,186.66,186.65,19.3198726]
[1753367700992,9.55329561,186.66,186.65,19.3198726]
[1753367701560,0.03,186.68,186.65,19.3198726]
[1753367701561,0.74,186.68,186.65,19.3198726]
[1753367701769,0.03,186.68,186.66,8.84329561]
[1753367702082,0.03,186.68,186.65,33.52077328]
[1753367702388,0.03,186.68,186.66,0.67]
[1753367702761,0.03,186.68,186.67,8.84329561]
[1753367703785,0.03,186.68,186.66,8.84329561]
[1753367704168,9.55329561,186.67,186.65,19.3198726]
[1753367704360,9.55329561,186.66,186.65,19.3198726]
[1753367704680,14.9106298,186.66,186.65,19.3198726]
[1753367704882,5.35733419,186.66,186.65,19.3198726]
[1753367705071,5.38682303,186.68,186.65,19.3198726]
[1753367705388,9.55329561,186.67,186.65,19.3198726]
[1753367705561,5.38682303,186.68,186.65,19.3198726]
[1753367705562,9.55329561,186.66,186.65,19.3198726]
[1753367705956,0.71,186.66,186.65,19.3198726]
[1753367706284,9.55329561,186.66,186.65,19.3198726]
[1753367706684,14.9106298,186.66,186.65,19.3198726]
[1753367707993,6.06733419,186.66,186.65,19.3198726]
[1753367708201,14.9106298,186.66,186.65,19.3198726]
[1753367708355,5.35733419,186.66,186.65,19.3198726]
[1753367708555,14.9106298,186.66,186.65,19.3198726]
[1753367709401,29.89806527,186.66,186.54,6.4237]
[1753367709682,29.89806527,186.66,186.51,8.84329561]
[1753367709683,8.84329561,186.56,186.51,8.84329561]
[1753367709890,8.84329561,186.57,186.52,8.84329561]
[1753367710193,20.34476966,186.66,186.49,43.7929]
[1753367710194,8.84329561,186.61,186.55,8.84329561]
[1753367710417,0.67,186.64,186.58,8.84329561]
[1753367710564,5.35733419,186.66,186.61,8.84329561]
[1753367710764,9.51329561,186.65,186.6,8.84329561]
[1753367711086,0.67,186.64,186.6,8.84329561]
[1753367711379,0.67,186.64,186.58,5.35963111]
[1753367711380,9.51329561,186.64,186.58,5.35963111]
[1753367711680,9.51329561,186.64,186.59,8.84329561]
[1753367711887,8.84329561,186.6,186.54,8.84329561]
[1753367712073,8.84329561,186.59,186.54,8.84329561]
[1753367712271,8.84329561,186.59,186.54,9.53329561]
[1753367712477,18.75066966,186.66,186.49,2.2729]
[1753367712478,0.67,186.58,186.49,2.2729]
[1753367712679,9.51329561,186.58,186.53,8.84329561]
[1753367712988,8.84329561,186.58,186.53,9.53329561]
[1753367713286,5.35899868,186.61,186.54,0.69]
[1753367713489,5.35899868,186.61,186.54,9.53329561]
[1753367713490,8.84329561,186.59,186.54,9.53329561]
[1753367714264,9.51329561,186.58,186.52,14.20443515]
[1753367714464,8.84329561,186.57,186.52,14.20443515]
[1753367715090,8.84329561,186.57,186.52,0.69]
[1753367715397,8.84329561,186.58,186.53,9.53329561]
[1753367715892,8.84329561,186.6,186.54,9.53329561]
[1753367716090,8.84329561,186.61,186.54,0.69]
[1753367716299,5.35825575,186.63,186.54,9.53329561]
[1753367716300,0.67,186.62,186.54,9.53329561]
[1753367716469,8.84329561,186.58,186.51,0.69]
[1753367716671,8.84329561,186.56,186.5,8.84329561]
[1753367716971,0.67,186.61,186.55,8.84329561]
[1753367717169,6.02790827,186.64,186.56,8.84329561]
[1753367717367,8.84329561,186.61,186.56,8.84329561]
[1753367717563,9.51329561,186.6,186.55,0.69]
[1753367718068,8.84329561,186.6,186.55,0.69]
[1753367718268,5.35838797,186.63,186.56,9.53329561]
[1753367718581,8.84329561,186.65,186.6,8.84329561]
[1753367718787,8.84329561,186.65,186.6,9.53329561]
[1753367718987,14.20097669,186.65,186.6,8.84329561]
[1753367719173,8.84329561,186.62,186.57,8.84329561]
[1753367719500,9.51329561,186.62,186.56,9.53329561]
[1753367719687,8.84329561,186.62,186.56,9.53329561]
[1753367719989,8.84329561,186.61,186.56,9.53329561]
[1753367720190,14.20206719,186.61,186.56,9.53329561]
[1753367720369,8.84329561,186.59,186.54,8.84329561]
[1753367720570,0.67,186.6,186.49,6.94509193]
[1753367720867,0.67,186.6,186.53,8.84329561]
[1753367720868,8.84329561,186.58,186.53,8.84329561]
[1753367721577,0.67,186.58,186.52,8.84329561]
[1753367721785,8.84329561,186.57,186.52,8.84329561]
[1753367721977,8.84329561,186.57,186.52,9.53329561]
[1753367722170,5.36020583,186.56,186.52,9.53329561]
[1753367722365,13.39692406,186.61,186.53,0.69]
[1753367722366,14.06692406,186.61,186.53,0.69]
[1753367722583,8.84329561,186.57,186.53,0.69]
[1753367722765,5.3590568,186.6,186.54,8.84329561]
[1753367722967,5.35867824,186.62,186.57,8.84329561]
[1753367723169,8.84329561,186.61,186.57,0.69]
[1753367723367,8.84329561,186.61,186.56,8.84329561]
[1753367723576,8.84329561,186.61,186.56,9.53329561]
[1753367723778,14.20197385,186.62,186.57,0.69]
[1753367723996,5.35867824,186.62,186.57,9.53329561]
[1753367724290,14.20197385,186.62,186.57,9.53329561]
[1753367724468,8.84329561,186.62,186.57,9.53329561]
[1753367724668,5.35825132,186.63,186.59,8.84329561]
[1753367725777,5.35794204,186.64,186.6,9.53329561]
[1753367725983,14.20123765,186.64,186.59,8.84329561]
[1753367726274,5.35794204,186.64,186.59,8.84329561]
[1753367726477,0.03,186.65,186.6,0.69]
[1753367726707,6.05766578,186.65,186.61,8.84329561]
[1753367726987,14.23096139,186.65,186.6,8.84329561]
[1753367727191,0.03,186.65,186.61,8.84329561]
[1753367727399,0.03,186.65,186.62,8.84329561]
[1753367727572,0.03,186.65,186.64,8.84329561]
[1753367727991,0.03,186.65,186.64,9.53329561]
[1753367728197,0.03,186.65,186.64,104.17552702]
[1753367728382,0.03,186.65,186.64,145.43552702]
[1753367729089,1e-08,186.65,186.64,162.22021099]
[1753367729393,1e-08,186.65,186.64,151.97612702]
[1753367729697,1e-08,186.65,186.64,168.76081099]
[1753367730011,4.30579366,186.82,186.69,88.94]
[1753367730176,8.84329561,186.8,186.74,8.84329561]
[1753367730496,0.67,186.79,186.72,8.84329561]
[1753367730677,0.67,186.79,186.73,8.84329561]
[1753367731295,8.84329561,186.78,186.72,0.69]
[1753367731493,8.84329561,186.78,186.73,8.84329561]
[1753367731673,6.02387992,186.79,186.72,0.69]
[1753367731875,5.35387992,186.79,186.74,8.84329561]
[1753367732184,6.02387992,186.79,186.71,6.04587796]
[1753367732381,8.84329561,186.78,186.71,6.04587796]
[1753367732782,6.02387992,186.79,186.73,8.84329561]
[1753367732993,8.84329561,186.78,186.71,6.04576898]
[1753367733294,0.67,186.83,186.72,0.69]
[1753367733497,8.84329561,186.8,186.75,8.84329561]
[1753367733797,9.51329561,186.79,186.72,0.69]
[1753367733993,9.51329561,186.79,186.74,8.84329561]
[1753367734496,8.84329561,186.79,186.74,8.84329561]
[1753367734795,6.02245945,186.83,186.75,0.69]
[1753367735094,8.84329561,186.82,186.77,8.84329561]
[1753367735277,9.51329561,186.81,186.75,0.69]
[1753367735471,8.84329561,186.78,186.73,8.84329561]
[1753367735791,8.84329561,186.81,186.76,8.84329561]
[1753367735975,8.84329561,186.82,186.77,8.84329561]
[1753367736180,5.35245945,186.83,186.76,0.69]
[1753367736400,5.35245945,186.83,186.78,8.84329561]
[1753367736576,0.67,186.82,186.77,8.84329561]
[1753367736772,9.51329561,186.82,186.77,8.84329561]
[1753367736997,8.84329561,186.82,186.78,0.69]
[1753367737185,14.19575506,186.83,186.78,0.69]
[1753367737380,14.19575506,186.83,186.78,8.84329561]
[1753367737587,14.19575506,186.83,186.78,9.53329561]
[1753367737975,5.35245945,186.83,186.78,0.69]
[1753367738184,14.86575506,186.83,186.78,0.69]
[1753367738382,14.86575506,186.83,186.78,9.53329561]
[1753367739077,5.35245945,186.83,186.78,0.69]
[1753367739291,8.84329561,186.85,186.8,8.84329561]
[1753367739597,14.19489573,186.86,186.81,0.72]
[1753367739896,5.35160012,186.86,186.82,8.84329561]
[1753367740100,5.38135683,186.87,186.83,0.72]
[1753367740290,14.22465244,186.87,186.83,0.72]
[1753367740493,5.38135683,186.87,186.83,0.72]
[1753367740694,0.03,186.87,186.84,8.84329561]
[1753367740895,0.03,186.87,186.8,6.6007]
[1753367741400,0.03,186.87,186.83,0.72]
[1753367741775,0.03,186.87,186.84,0.72]
[1753367742590,0.03,186.87,186.82,0.72]
[1753367742980,0.03,186.87,186.83,0.72]
[1753367743296,0.03,186.87,186.86,8.84329561]
[1753367743703,0.03,186.87,186.84,5.35216774]
[1753367744004,8.84329561,186.85,186.8,6.6007]
[1753367744302,8.84329561,186.81,186.76,41.18]
[1753367744478,8.84329561,186.85,186.77,0.72]
[1753367744891,0.03,186.87,186.8,8.84329561]
[1753367745086,8.84329561,186.85,186.76,46.53445156]
[1753367745285,8.84329561,186.86,186.81,8.84329561]
[1753367745498,14.19495487,186.86,186.81,9.56329561]
[1753367745703,8.84329561,186.85,186.8,8.84329561]
[1753367745896,0.7,186.84,186.78,0.72]
[1753367746103,8.84329561,186.82,186.75,12.68690195]
[1753367746301,8.84329561,186.79,186.72,49.21659441]
[1753367746497,8.84329561,186.79,186.72,49.93659441]
[1753367746708,8.84329561,186.79,186.72,44.58126051]
[1753367746709,0.7,186.79,186.72,44.58126051]
[1753367747041,8.84329561,186.78,186.72,3.38126051]
[1753367747315,0.7,186.77,186.68,0.06]
[1753367747480,8.84329561,186.72,186.68,0.06]
[1753367747896,8.84329561,186.71,186.68,0.06]
[1753367748185,22.22862415,186.78,186.68,0.06]
[1753367748410,8.84329561,186.73,186.68,0.78]
[1753367748609,8.84329561,186.74,186.69,8.84329561]
[1753367748924,8.84329561,186.73,186.68,8.90329561]
[1753367749089,9.54329561,186.73,186.68,8.90329561]
[1753367749281,9.54329561,186.73,186.68,0.06]